bitfinex-derivatives/quotes_SOLF0:USTF0_20241024
["timestamp","ask_amount","ask_price","bid_price","bid_amount"]
[1729766008288,2.8889,173.23,173.19,7.2694]
[1729766008478,2.889,173.22,173.2,1.44485842]
[1729766008677,1.2035,173.26,173.18,2.8894]
[1729766008889,1.2035,173.26,173.19,1.44488477]
[1729766009090,2.889,173.22,173.2,1.44488477]
[1729766009388,2.889,173.22,173.18,2.8894]
[1729766009577,2.889,173.22,173.19,6.52268303]
[1729766009775,2.889,173.22,173.2,1.4448833]
[1729766009986,4.38,173.24,173.19,5.07781688]
[1729766010185,4.38,173.24,173.01,17.38]
[1729766010186,11.10222424,173.22,173.13,9.45781688]
[1729766010388,7.10104365,173.19,173.14,1.44510265]
[1729766010587,9.99044365,173.19,173.15,4.33510265]
[1729766010775,9.99044365,173.19,173.16,6.52794139]
[1729766010975,9.99044365,173.19,173.08,2.4234]
[1729766010976,4.38,173.42,173.18,7.10104365]
[1729766011189,2.887,173.34,173.31,7.10104365]
[1729766011691,7.10104365,173.34,173.27,11.48104365]
[1729766012188,2.8876,173.3,173.21,1.1698]
[1729766012385,11.09022399,173.35,173.22,10.90009408]
[1729766012690,2.8876,173.3,173.24,2.8884]
[1729766012887,17.86462399,173.33,173.25,1.44436323]
[1729766013079,11.09022399,173.29,173.2,4.38]
[1729766013285,1.1939,173.32,173.21,1.44464675]
[1729766013589,1.1939,173.32,173.2,4.38]
[1729766013590,11.09022399,173.31,173.2,4.38]
[1729766013891,2.8882,173.27,173.22,2.8888]
[1729766014091,11.09022399,173.24,173.02,4.3453176]
[1729766014296,2.8894,173.2,173.16,2.8898]
[1729766014487,11.09022399,173.21,173.17,1.44500017]
[1729766014788,2.4751,173.25,173.18,1.44504056]
[1729766014789,2.8889,173.22,173.18,1.44504056]
[1729766014992,11.09022399,173.23,173.17,2.8897]
[1729766016186,2.8892,173.21,173.16,2.8898]
[1729766016391,2.8892,173.21,173.17,1.44508182]
[1729766016589,2.4751,173.25,173.15,4.38]
[1729766016796,2.4751,173.25,173.16,6.52632717]
[1729766017091,2.4751,173.25,173.17,6.52632717]
[1729766017299,2.4751,173.25,173.18,1.44501803]
[1729766017497,2.4751,173.25,173.16,5.08095883]
[1729766017690,2.4751,173.25,173.17,6.52589727]
[1729766017894,2.4751,173.25,173.15,4.38]
[1729766017895,5.3636,173.25,173.21,2.889]
[1729766018994,4.1697,173.25,173.21,2.889]
[1729766020088,1.2812,173.25,173.19,4.38]
[1729766020294,1.2371,173.26,173.2,1.44484294]
[1729766020295,4.1254,173.26,173.2,1.44484294]
[1729766020488,4.1254,173.26,173.19,4.38]
[1729766020687,1.2371,173.26,173.2,1.44482955]
[1729766020993,1.2371,173.26,173.19,4.38]
[1729766021190,2.8885,173.25,173.21,2.889]
[1729766021592,1.2371,173.26,173.19,4.38]
[1729766021801,2.8889,173.23,173.2,1.44483155]
[1729766021996,11.09022399,173.25,173.18,2.8895]
[1729766022195,2.8888,173.23,173.19,4.33425257]
[1729766022389,2.8888,173.23,173.19,2.8894]
[1729766027405,2.8889,173.22,173.18,7.96447594]
[1729766027705,2.8889,173.22,173.19,1.44486399]
[1729766027908,2.8889,173.22,173.18,2.8895]
[1729766028204,2.8889,173.22,173.19,1.44486399]
[1729766028505,2.8889,173.22,173.18,2.8895]
[1729766028710,2.8889,173.22,173.19,1.44486399]
[1729766028899,2.8889,173.22,173.18,2.8895]
[1729766029100,2.8889,173.22,173.19,1.44486447]
[1729766029310,2.8889,173.22,173.18,2.8895]
[1729766029503,11.09022399,173.25,173.19,1.444863]
[1729766029803,1.2608,173.24,173.16,4.38]
[1729766030003,2.8892,173.2,173.17,1.44495391]
[1729766030204,2.8892,173.2,173.18,1.44495391]
[1729766030508,1.2371,173.26,173.19,1.44490564]
[1729766030704,1.2371,173.26,173.2,4.33410564]
[1729766030898,1.2371,173.26,173.2,2.8892]
[1729766031702,2.8887,173.24,173.2,2.8892]
[1729766032600,11.09022399,173.23,173.17,5.07297114]
[1729766032805,11.09022399,173.2,173.11,4.38]
[1729766033008,11.09022399,173.2,173.12,6.51962702]
[1729766033201,2.8898,173.17,173.13,6.51962702]
[1729766033402,12.26962399,173.22,173.14,6.51962702]
[1729766033599,1.1794,173.22,173.15,6.51962702]
[1729766033804,2.8895,173.19,173.16,1.44515363]
[1729766033998,2.8895,173.19,173.15,2.8899]
[1729766034404,1.1794,173.22,173.14,5.07516392]
[1729766034602,2.8894,173.2,173.16,2.8898]
[1729766038407,12.26962399,173.22,173.16,2.8898]
[1729766038608,2.8894,173.19,173.16,2.8898]
[1729766040212,2.8896,173.18,173.15,2.8901]
[1729766040412,2.8896,173.18,173.16,1.4451777]
[1729766040711,2.8896,173.18,173.15,2.8901]
[1729766040913,2.8896,173.18,173.16,1.44518417]
[1729766041109,2.8896,173.18,173.15,2.8901]
[1729766041312,2.8896,173.18,173.16,1.44518417]
[1729766041515,2.8896,173.18,173.15,2.8901]
[1729766042306,1.2754,173.23,173.14,15.55022399]
[1729766042510,12.32732399,173.26,173.15,6.52093812]
[1729766042706,12.32732399,173.26,173.15,2.4932]
[1729766042912,2.8888,173.23,173.19,2.8894]
[1729766043208,12.32732399,173.26,173.15,2.4932]
[1729766043407,2.8888,173.23,173.19,2.8893]
[1729766043611,2.8888,173.23,173.15,2.4932]
[1729766043612,12.32732399,173.26,173.18,4.46]
[1729766043813,12.32732399,173.26,173.19,1.44489701]
[1729766044010,2.8887,173.24,173.2,2.8891]
[1729766045021,1.2371,173.26,173.22,2.8889]
[1729766045022,2.8883,173.26,173.22,2.8889]
[1729766047525,2.8884,173.25,173.22,2.8889]
[1729766048523,2.4967,173.28,173.19,5.07015858]
[1729766048723,2.4967,173.28,173.21,2.889]
[1729766049325,2.8885,173.25,173.21,2.889]
[1729766049625,2.4967,173.28,173.21,2.889]
[1729766050026,2.4967,173.28,173.19,5.0698627]
[1729766050027,2.8892,173.2,173.19,5.0698627]
[1729766050228,11.09022399,173.24,173.19,1.44494837]
[1729766050427,2.889,173.22,173.17,2.8897]
[1729766050630,11.09022399,173.24,173.18,1.44498763]
[1729766050927,11.09022399,173.24,173.16,4.46]
[1729766050928,2.889,173.22,173.16,4.46]
[1729766051126,1.2785,173.23,173.17,6.51823119]
[1729766051324,1.2785,173.23,173.18,1.44501664]
[1729766051528,2.8894,173.2,173.16,2.8898]
[1729766051834,2.8894,173.2,173.17,6.51993214]
[1729766052023,2.8894,173.2,173.18,1.44500986]
[1729766052222,1.2785,173.23,173.15,2.8901]
[1729766052435,1.2785,173.23,173.16,6.5218984]
[1729766052732,1.2785,173.23,173.17,6.5218984]
[1729766052930,1.2785,173.23,173.16,2.8898]
[1729766052931,2.8894,173.2,173.16,2.8898]
[1729766053124,2.8894,173.2,173.17,6.52346877]
[1729766053330,2.8894,173.2,173.18,1.44500432]
[1729766053526,11.09022399,173.21,173.15,2.89]
[1729766053727,11.09022399,173.21,173.16,6.52569015]
[1729766053933,11.09022399,173.21,173.17,1.44503737]
[1729766054126,11.09022399,173.21,173.18,1.44503737]
[1729766054432,11.09022399,173.21,173.16,5.08082285]
[1729766054732,11.09022399,173.21,173.17,1.4450412]
[1729766055036,2.8898,173.17,173.13,2.8904]
[1729766055233,2.8898,173.17,173.14,6.52829001]
[1729766055430,2.8898,173.17,173.15,6.52829001]
[1729766055630,2.8898,173.17,173.16,1.44520365]
[1729766056634,2.8898,173.17,173.14,2.8902]
[1729766056929,11.09022399,173.21,173.15,6.52928903]
[1729766057129,11.09022399,173.21,173.16,1.44519354]
[1729766057330,2.8897,173.18,173.14,2.8902]
[1729766057530,2.8897,173.18,173.15,6.52938728]
[1729766057733,2.8897,173.18,173.16,1.44520927]
[1729766057930,2.8897,173.18,173.14,2.8902]
[1729766058232,2.8893,173.2,173.17,2.8896]
[1729766058431,2.8893,173.2,173.18,1.44520927]
[1729766058623,2.8893,173.2,173.12,4.46]
[1729766058825,2.8893,173.2,173.16,2.8899]
[1729766059027,2.8893,173.2,173.17,1.44507831]
[1729766059230,2.8893,173.2,173.18,1.44507831]
[1729766059430,1.2785,173.23,173.19,2.8893]
[1729766059628,2.8884,173.25,173.17,11.09022399]
[1729766059833,11.09022399,173.29,173.18,6.52576818]
[1729766060032,11.09022399,173.29,173.22,2.8889]
[1729766060231,2.8882,173.27,173.2,5.08090131]
[1729766060538,11.09022399,173.29,173.21,4.33369266]
[1729766060729,11.09022399,173.29,173.22,1.44479266]
[1729766060930,1.1938,173.3,173.2,15.55022399]
[1729766061235,1.1938,173.3,173.24,2.8884]
[1729766062135,2.888,173.28,173.25,1.44455584]
[1729766062436,2.888,173.28,173.24,2.8884]
[1729766062636,2.888,173.28,173.25,1.44452974]
[1729766062837,2.888,173.28,173.24,2.8884]
[1729766063034,2.888,173.28,173.25,1.44452974]
[1729766063335,2.888,173.28,173.24,2.8884]
[1729766063536,2.888,173.28,173.25,1.44452974]
[1729766063730,2.888,173.28,173.24,2.8884]
[1729766063932,1.1938,173.3,173.25,1.44452974]
[1729766064129,1.1938,173.3,173.21,5.07552916]
[1729766064327,1.1938,173.3,173.22,6.52005883]
[1729766064528,2.888,173.28,173.24,2.8886]
[1729766064735,1.1938,173.3,173.22,11.09022399]
[1729766064931,1.1938,173.3,173.23,6.51961082]
[1729766065238,1.1938,173.3,173.24,1.44452967]
[1729766065442,1.1938,173.3,173.22,11.09022399]
[1729766065641,1.1938,173.3,173.23,6.51957818]
[1729766065842,2.8879,173.28,173.25,2.8884]
[1729766066031,5.6954,173.31,173.25,2.8884]
[1729766066233,11.09022399,173.34,173.18,2.5449]
[1729766066234,4.46,173.34,173.24,15.55022399]
[1729766066440,2.8874,173.31,173.27,2.8879]
[1729766067632,2.8874,173.31,173.25,5.07417272]
[1729766067834,2.8874,173.31,173.26,1.44434745]
[1729766068142,4.46,173.34,173.25,5.07415891]
[1729766068337,2.8876,173.3,173.26,4.33257345]
[1729766068544,2.8876,173.3,173.26,2.8882]
[1729766069540,2.8878,173.29,173.25,2.8884]
[1729766071536,2.8878,173.29,173.24,15.55022399]
[1729766071736,2.8878,173.29,173.26,2.8882]
[1729766071939,2.8875,173.31,173.24,15.55022399]
[1729766072141,2.8875,173.31,173.25,1.44440732]
[1729766072447,2.8875,173.31,173.24,15.55022399]
[1729766072645,2.8875,173.31,173.27,2.8881]
[1729766072849,2.82646436,173.39,173.28,4.4]
[1729766073039,11.09022399,173.37,173.28,4.4]
[1729766073846,2.8874,173.32,173.28,2.8879]
[1729766074943,2.8877,173.3,173.25,2.8883]
[1729766075136,11.09022399,173.34,173.25,7.2883]
[1729766075337,11.09022399,173.34,173.24,1.44444319]
[1729766075338,11.09022399,173.32,173.24,1.44444319]
[1729766075643,2.8883,173.26,173.23,7.2886]
[1729766075947,11.09022399,173.32,173.23,7.2886]
[1729766076146,11.09022399,173.32,173.23,2.8886]
[1729766076538,2.8882,173.27,173.23,2.8886]
[1729766076745,11.09022399,173.32,173.21,1.2513]
[1729766076746,4.4,173.31,173.21,1.2513]
[1729766077045,11.09022399,173.3,173.22,1.44452653]
[1729766077237,11.09022399,173.3,173.21,4.4]
[1729766077643,11.09022399,173.3,173.21,7.2889]
[1729766078345,2.8884,173.26,173.21,7.2889]
[1729766078535,2.8884,173.26,173.21,2.8889]
[1729766079244,2.8884,173.25,173.21,2.8889]
[1729766080136,2.8885,173.25,173.21,2.889]
[1729766080546,11.09022399,173.3,173.2,4.4]
[1729766080755,2.8887,173.23,173.2,4.4]
[1729766081450,11.09022399,173.27,173.17,2.8897]
[1729766081648,15.49022399,173.27,173.17,4.4]
[1729766081847,15.49022399,173.27,173.18,1.44485737]
[1729766082045,15.49022399,173.27,173.19,1.44485737]
[1729766082239,15.49022399,173.27,173.16,1.2268]
[1729766082451,3.7262,173.26,173.17,10.91746386]
[1729766082659,3.7262,173.26,173.18,1.44487753]
[1729766082948,11.09022399,173.24,173.14,4.4]
[1729766083145,11.09022399,173.24,173.15,6.52007875]
[1729766083349,4.4,173.23,173.16,1.44490939]
[1729766083542,4.4,173.23,173.17,1.44490939]
[1729766083747,4.4,173.23,173.14,4.4]
[1729766083948,2.8893,173.2,173.16,2.8899]
[1729766084148,4.4,173.23,173.17,1.44496224]
[1729766084348,4.4,173.23,173.15,5.07587079]
[1729766084647,2.8894,173.2,173.16,1.44497673]
[1729766084845,2.8894,173.2,173.17,1.44497673]
[1729766085152,2.8894,173.2,173.15,2.89]
[1729766085551,2.8894,173.19,173.15,2.89]
[1729766085753,2.8894,173.19,173.16,1.44496852]
[1729766085955,2.8894,173.19,173.17,1.44496852]
[1729766086149,2.8894,173.19,173.15,2.89]
[1729766086456,2.8894,173.19,173.16,1.44497659]
[1729766086658,2.8894,173.19,173.17,1.44497659]
[1729766086857,2.8894,173.19,173.15,2.89]
[1729766087056,2.8894,173.19,173.16,1.44497635]
[1729766087258,2.8894,173.19,173.17,1.44497635]
[1729766087459,2.8894,173.19,173.15,2.89]
[1729766087659,2.8894,173.19,173.16,1.44497451]
[1729766087855,2.8894,173.19,173.17,1.44497451]
[1729766088048,2.8894,173.19,173.15,2.89]
[1729766088250,2.8894,173.19,173.16,1.44497782]
[1729766088462,2.8894,173.19,173.17,1.44497782]
[1729766088761,2.8894,173.19,173.16,2.8899]
[1729766089263,2.8894,173.19,173.17,1.44496988]
[1729766089557,2.8894,173.19,173.16,2.8899]
[1729766089757,2.8894,173.19,173.17,1.44497782]
[1729766089958,2.8894,173.19,173.16,2.8899]
[1729766090259,2.8894,173.19,173.17,1.44497782]
[1729766090457,2.8894,173.19,173.16,2.8899]
[1729766090755,2.8894,173.19,173.17,1.44497012]
[1729766090958,2.8894,173.19,173.16,2.8899]
[1729766091159,2.8894,173.19,173.17,1.44497659]
[1729766091355,2.8894,173.19,173.16,2.8899]
[1729766091555,2.8894,173.19,173.17,1.44497659]
[1729766091758,2.8894,173.19,173.16,2.8899]
[1729766091955,11.09022399,173.24,173.17,1.44497659]
[1729766092154,11.09022399,173.24,173.16,5.07619983]
[1729766092359,11.09022399,173.24,173.14,4.4]
[1729766092558,11.09022399,173.24,173.15,6.52196885]
[1729766092758,2.889,173.22,173.16,6.52196885]
[1729766093069,5.6887,173.26,173.17,6.5211797]
[1729766093361,5.6887,173.26,173.18,5.84495184]
[1729766093555,5.6887,173.26,173.18,4.4]
[1729766093761,2.8886,173.24,173.19,2.8893]
[1729766093960,2.8886,173.24,173.18,4.4]
[1729766094256,2.8888,173.23,173.2,2.8892]
[1729766094852,2.8888,173.23,173.18,4.4]
[1729766095057,2.8888,173.23,173.19,4.33423218]
[1729766095258,2.8888,173.23,173.19,2.8894]
[1729766096658,2.889,173.22,173.18,7.2895]
[1729766096863,2.889,173.22,173.19,1.44483524]
[1729766097063,2.889,173.22,173.18,7.2895]
[1729766097263,2.889,173.22,173.19,1.44483524]
[1729766097456,2.889,173.22,173.19,2.8894]
[1729766097857,1.2887,173.26,173.18,4.4]
[1729766098164,1.2887,173.26,173.19,1.44482915]
[1729766098358,1.2887,173.26,173.18,4.4]
[1729766098558,2.8891,173.21,173.19,1.44483562]
[1729766098767,1.2887,173.26,173.18,4.4]
[1729766098964,2.889,173.22,173.19,1.44483562]
[1729766099166,1.2887,173.26,173.18,4.4]
[1729766099359,1.2887,173.26,173.19,1.44484209]
[1729766099560,2.889,173.22,173.18,7.2895]
[1729766099868,2.889,173.22,173.19,1.44484209]
[1729766100057,1.2887,173.26,173.18,7.2895]
[1729766100262,2.8891,173.21,173.19,1.4448371]
[1729766100462,2.8891,173.21,173.18,7.2895]
[1729766100664,2.8891,173.21,173.19,1.44483733]
[1729766100959,2.8891,173.21,173.18,7.2895]
[1729766101160,2.8891,173.21,173.19,1.44483586]
[1729766101367,2.8891,173.21,173.18,7.2895]
[1729766101565,11.09022399,173.24,173.16,5.07805273]
[1729766101759,11.09022399,173.24,173.09,2.891]
[1729766101760,11.09022399,173.19,173.09,2.891]
[1729766101959,11.09022399,173.15,173.09,2.891]
[1729766102462,2.8904,173.14,173.09,2.891]
[1729766104166,11.09022399,173.12,173.05,1.2035]
[1729766104471,11.09022399,173.12,173.03,1.2063]
[1729766104670,4.38,173.14,173.03,1.2063]
[1729766104671,11.09022399,173.1,173.03,1.2063]
[1729766105173,11.09022399,173.08,173.0,4.38]
[1729766105867,2.8917,173.06,173.01,2.8924]
[1729766106269,11.09022399,173.08,173.0,4.38]
[1729766106660,11.09022399,173.08,172.98,1.2179]
[1729766106970,2.8921,173.04,172.98,4.1107]
[1729766107170,2.8921,173.04,172.98,8.4907]
[1729766107371,11.09022399,173.08,172.98,5.5979]
[1729766107765,2.8917,173.06,173.01,2.8924]
[1729766107960,11.09022399,173.08,172.98,5.5979]
[1729766108568,2.8921,173.04,172.99,2.8927]
[1729766108867,5.6568,173.09,172.98,16.68812399]
[1729766109068,2.8913,173.08,173.03,2.8919]
[1729766109273,5.6568,173.09,172.98,16.68812399]
[1729766109868,2.8915,173.07,173.02,2.8921]
[1729766110272,11.09022399,173.08,172.98,16.68812399]
[1729766110569,11.09022399,173.08,172.98,5.5979]
[1729766110771,11.09022399,173.06,172.98,5.5979]
[1729766111468,2.8922,173.03,172.99,2.8927]
[1729766111664,11.09022399,173.03,172.94,2.4256]
[1729766111866,11.09022399,173.01,172.94,1.1663]
[1729766112066,2.8927,173.0,172.95,2.8934]
[1729766113272,2.8927,173.0,172.96,2.8932]
[1729766113665,4.4,173.06,172.96,11.09022399]
[1729766113870,4.4,173.06,172.97,4.4]
[1729766114271,11.09022399,173.08,172.97,4.4]
[1729766114468,4.4,173.07,172.97,4.4]
[1729766115275,11.09022399,173.08,172.97,4.4]
[1729766115581,2.8921,173.04,172.99,2.8927]
[1729766116475,11.09022399,173.06,172.97,5.84618607]
[1729766116686,11.09022399,173.04,172.95,1.2503]
[1729766116979,15.49022399,173.04,172.95,2.69662952]
[1729766117177,2.8925,173.01,172.96,2.8932]
[1729766117373,4.4,173.04,172.95,2.69662952]
[1729766117572,2.8924,173.02,172.97,2.893]
[1729766119475,2.8923,173.02,172.97,2.893]
[1729766119874,4.4,173.04,172.97,2.893]
[1729766120074,2.8923,173.02,172.97,2.893]
[1729766120675,2.8923,173.02,172.97,2.8931]
[1729766122677,15.49022399,173.04,172.95,1.44627567]
[1729766122884,15.49022399,173.04,172.94,5.5663]
[1729766123093,1.2849,173.03,172.94,5.5663]
[1729766123278,2.8929,172.99,172.94,1.1663]
[1729766123473,11.09022399,173.01,172.92,4.4]
[1729766123773,4.4,173.0,172.89,13.77931101]
[1729766123971,2.893,172.98,172.94,2.8935]
[1729766124582,2.8931,172.97,172.93,2.8936]
[1729766125085,4.4,173.0,172.9,5.84638702]
[1729766126383,2.8929,172.98,172.94,2.8936]
[1729766129184,5.6465,173.02,172.92,11.09022399]
[1729766129385,2.8925,173.01,172.97,2.8931]
[1729766129979,8.5389,173.02,172.98,2.8929]
[1729766130284,8.5389,173.02,172.91,1.4465552]
[1729766130285,1.2465,173.02,172.94,15.49022399]
[1729766130779,2.8925,173.01,172.98,2.8929]
[1729766130985,4.4,173.03,172.98,2.8929]
[1729766132391,2.8923,173.02,172.98,2.8929]
[1729766133287,2.8923,173.02,172.94,15.49022399]
[1729766133288,2.8923,173.02,172.96,11.09022399]
[1729766133587,13.64252399,173.09,173.01,11.09022399]
[1729766133588,2.5523,173.09,173.01,11.09022399]
[1729766133782,4.4,173.15,173.04,11.09022399]
[1729766133982,2.8908,173.11,173.06,2.8914]
[1729766134892,2.8911,173.09,173.05,2.8917]
[1729766135196,4.4,173.11,173.03,4.4]
[1729766135397,11.09022399,173.12,173.01,15.49022399]
[1729766135398,4.4,173.1,173.01,15.49022399]
[1729766136385,2.8914,173.08,173.01,15.49022399]
[1729766137296,2.8914,173.08,173.03,2.8919]
[1729766137493,4.4,173.1,172.99,11.09022399]
[1729766137494,2.8917,173.06,172.99,11.09022399]
[1729766137799,2.8917,173.06,172.99,15.49022399]
[1729766138390,2.8917,173.06,173.01,2.8924]
[1729766139999,2.8915,173.07,173.02,2.8921]
[1729766140302,14.84042399,173.09,172.99,15.49022399]
[1729766140691,2.8915,173.07,173.02,2.8922]
[1729766143204,2.8915,173.07,173.03,2.8921]
[1729766146196,2.8918,173.05,173.0,7.2924]
[1729766146401,14.84042399,173.09,173.0,4.4]
[1729766146802,2.8919,173.05,172.98,4.4]
[1729766147401,2.8919,173.05,173.01,2.8924]
[1729766147901,4.4,173.11,172.99,11.09022399]
[1729766148310,2.8915,173.07,173.03,2.8919]
[1729766153515,15.49022399,173.11,172.99,11.09022399]
[1729766153711,2.8918,173.05,173.01,2.8924]
[1729766154017,11.09022399,173.08,172.98,4.4]
[1729766154217,2.8921,173.03,172.98,4.4]
[1729766154412,4.4,173.07,172.98,4.4]
[1729766154815,2.892,173.04,173.0,2.8925]
[1729766155314,2.892,173.04,173.01,2.8924]
[1729766155615,4.4,173.07,173.01,2.8924]
[1729766155813,2.8918,173.05,173.01,2.8924]
[1729766156011,4.4,173.07,173.01,2.8924]
[1729766156408,2.8918,173.05,173.01,2.8924]
[1729766159317,4.4,173.07,172.96,2.8932]
[1729766159318,2.8926,173.0,172.96,2.8932]
[1729766159613,2.8926,173.0,172.95,2.4337]
[1729766159614,4.4,173.03,172.95,1.1815]
[1729766160908,2.8927,173.0,172.96,2.8931]
[1729766161509,2.8929,172.99,172.95,2.8934]
[1729766161919,12.35052399,173.02,172.91,1.2906]
[1729766162216,13.63512399,173.02,172.91,5.6906]
[1729766162413,13.63512399,173.02,172.91,2.7371164]
[1729766162612,11.09022399,172.99,172.91,2.8943]
[1729766162819,4.4,172.98,172.91,2.8943]
[1729766163419,2.8936,172.96,172.91,2.8943]
[1729766164316,4.4,172.98,172.9,1.4465164]
[1729766164516,11.09022399,172.97,172.9,1.4465164]
[1729766164823,11.09022399,172.97,172.88,4.4]
[1729766165015,11.09022399,172.97,172.88,5.8465164]
[1729766165216,11.09022399,172.97,172.87,1.4465164]
[1729766165518,11.09022399,172.97,172.85,16.66752399]
[1729766165714,2.8942,172.93,172.87,2.8949]
[1729766165919,4.4,172.94,172.88,1.44704477]
[1729766166113,4.4,172.94,172.87,4.34194477]
[1729766166319,4.4,172.94,172.88,1.44704477]
[1729766167313,11.09022399,172.92,172.88,1.44704477]
[1729766167517,11.09022399,172.92,172.87,1.44704477]
[1729766167716,11.09022399,172.92,172.85,1.44704477]
[1729766167916,11.09022399,172.92,172.86,1.44704477]
[1729766168111,11.09022399,172.92,172.85,1.44704477]
[1729766168317,2.8947,172.89,172.84,2.8955]
[1729766168613,11.09022399,172.92,172.85,1.44744928]
[1729766168818,2.8942,172.92,172.87,2.895]
[1729766169345,2.8942,172.92,172.84,1.44763691]
[1729766169520,2.8942,172.92,172.88,2.8949]
[1729766169821,2.8942,172.92,172.84,1.44763691]
[1729766170117,2.8942,172.92,172.85,2.8953]
[1729766170325,7.2942,172.92,172.83,12.5378609]
[1729766170517,7.2942,172.92,172.83,11.09022399]
[1729766172023,2.8946,172.9,172.83,11.09022399]
[1729766172623,2.8946,172.9,172.85,2.8954]
[1729766178035,15.49022399,172.92,172.81,1.44762193]
[1729766178238,2.895,172.88,172.83,2.8956]
[1729766178437,11.09022399,172.9,172.83,2.8956]
[1729766179217,2.8951,172.87,172.83,2.8956]
[1729766180327,4.4,172.88,172.79,2.64442193]
[1729766180530,2.896,172.82,172.78,2.8965]
[1729766180723,11.09022399,172.87,172.76,1.2513]
[1729766180919,4.4,172.86,172.76,12.34152399]
[1729766181229,4.4,172.88,172.78,11.09022399]
[1729766181430,4.4,172.88,172.78,15.49022399]
[1729766181825,4.4,172.88,172.78,16.93784592]
[1729766182020,2.8953,172.86,172.81,2.8959]
[1729766182330,4.4,172.88,172.81,2.8959]
[1729766182527,2.8953,172.86,172.81,2.8959]
[1729766182730,4.4,172.88,172.71,1.2555]
[1729766182731,11.09022399,172.85,172.73,15.49022399]
[1729766182931,7.2957,172.84,172.73,15.49022399]
[1729766183128,4.4,172.84,172.75,11.09022399]
[1729766183529,2.8957,172.83,172.75,11.09022399]
[1729766183725,2.8957,172.83,172.73,5.84806798]
[1729766184230,2.8957,172.83,172.74,11.09022399]
[1729766184937,2.8956,172.84,172.79,2.8963]
[1729766186732,2.8958,172.83,172.74,1.44809785]
[1729766187033,2.8958,172.83,172.79,2.8964]
[1729766187234,2.8962,172.81,172.74,1.44809785]
[1729766187422,2.8962,172.81,172.72,1.44809785]
[1729766187626,2.8962,172.81,172.73,4.4]
[1729766187924,2.8958,172.83,172.79,2.8964]
[1729766188528,2.8958,172.83,172.78,2.8965]
[1729766188831,2.8959,172.82,172.78,2.8965]
[1729766191967,2.8964,172.8,172.76,2.8968]
[1729766192162,4.4,172.84,172.73,4.4]
[1729766192360,7.11650439,172.81,172.75,7.11650439]
[1729766193155,7.11650439,172.81,172.78,2.8965]
[1729766195661,2.8959,172.82,172.78,2.8965]
[1729766195866,10.01230439,172.83,172.78,2.8965]
[1729766196361,2.8959,172.82,172.78,2.8965]
[1729766201345,7.11650439,172.81,172.78,2.8965]
[1729766202446,7.11650439,172.81,172.73,4.4]
[1729766202635,7.11650439,172.81,172.75,7.11650439]
[1729766202839,10.01270439,172.81,172.75,7.11650439]
[1729766203041,7.11650439,172.79,172.71,2.4737]
[1729766203242,7.11650439,172.78,172.71,2.4737]
[1729766203441,7.11650439,172.78,172.71,9.59020439]
[1729766204148,4.44,172.79,172.73,7.11650439]
[1729766204355,4.44,172.79,172.71,2.4737]
[1729766204649,4.44,172.79,172.76,2.8969]
[1729766204904,4.44,172.79,172.73,7.11650439]
[1729766205562,7.11650439,172.8,172.73,7.11650439]
[1729766205758,11.55650439,172.8,172.73,7.11650439]
[1729766206457,11.55650439,172.8,172.75,2.897]
[1729766206866,2.8964,172.79,172.75,2.897]
[1729766207160,11.55650439,172.8,172.76,2.8969]
[1729766207664,14.45280439,172.8,172.76,2.8969]
[1729766207856,7.11650439,172.79,172.76,2.8969]
[1729766208659,11.55650439,172.79,172.76,2.8969]
[1729766210346,7.11650439,172.79,172.76,2.8969]
[1729766210949,7.11650439,172.79,172.74,2.8971]
[1729766211251,7.11650439,172.79,172.73,7.11650439]
[1729766212254,7.11650439,172.79,172.76,2.8968]
[1729766212547,11.55650439,172.81,172.75,7.11650439]
[1729766213446,1.2361,172.86,172.75,7.11650439]